bitfinex/quotes_ETHUSD_20251111
["timestamp","ask_amount","ask_price","bid_price","bid_amount"]
[1762834918022,0.001,3590.4,3590.3,0.9902]
[1762834918222,0.001,3590.4,3590.3,3.77548256]
[1762834918822,0.001,3590.4,3590.3,4.43548256]
[1762834919030,0.001,3590.4,3590.3,3.77548256]
[1762834919231,0.001,3590.4,3590.3,4.43548256]
[1762834920425,0.001,3590.4,3590.3,4.84098656]
[1762834921368,0.001,3590.8,3590.7,3.19047628]
[1762834921580,0.001,3591.2,3591.0,3.19024362]
[1762834921744,0.001,3591.2,3591.0,4.18044362]
[1762834921949,0.001,3591.2,3591.0,5.44015562]
[1762834922476,0.001,3591.5,3591.4,3.18993347]
[1762834922636,0.001,3591.5,3591.4,4.34573347]
[1762834922835,0.001,3591.5,3591.1,0.1922]
[1762834923142,0.001,3591.5,3591.4,0.66]
[1762834923544,0.3551,3591.5,3590.8,0.1999]
[1762834923732,2.78445284,3591.4,3590.9,0.66]
[1762834924147,0.4893,3591.4,3590.9,0.66]
[1762834924377,0.001,3591.5,3591.3,0.4958]
[1762834924573,0.001,3591.5,3591.4,0.4958]
[1762834924869,0.001,3591.5,3590.9,0.66]
[1762834925059,0.001,3591.5,3590.4,0.1999]
[1762834925060,0.0049,3591.0,3590.4,0.1999]
[1762834925229,0.001,3591.5,3590.5,0.66]
[1762834925437,0.001,3591.5,3590.9,0.4958]
[1762834925772,0.001,3591.5,3590.9,3.28060276]
[1762834925943,0.001,3591.5,3591.0,0.4944]
[1762834926266,0.001,3591.5,3591.1,3.44460096]
[1762834926476,0.001,3591.5,3591.4,0.4958]
[1762834927657,0.001,3591.5,3591.4,3.77462947]
[1762834928097,0.001,3591.5,3591.4,4.20797776]
[1762834928403,0.001,3591.5,3591.4,4.18013347]
[1762834928604,0.001,3591.5,3591.4,4.20797776]
[1762834929369,0.001,3591.5,3591.4,4.18013347]
[1762834929904,0.001,3591.5,3591.4,5.46768976]
[1762834930067,0.001,3591.6,3591.5,4.04406394]
[1762834930271,0.001,3591.9,3591.8,3.18962338]
[1762834930471,0.001,3591.9,3591.8,3.71326457]
[1762834930703,0.001,3591.9,3591.8,4.20766457]
[1762834930906,0.001,3591.9,3591.8,0.9902]
[1762834931116,0.001,3591.9,3591.8,3.93991938]
[1762834931275,0.001,3591.9,3591.8,4.43431938]
[1762834932601,0.001,3591.9,3591.8,6.09953538]
[1762834932974,0.001,3591.9,3591.8,11.65265638]
[1762834933285,0.001,3592.0,3591.9,4.44925787]
[1762834933481,0.001,3592.4,3592.3,4.44894787]
[1762834933706,0.001,3592.4,3592.3,5.60474787]
[1762834933886,0.001,3592.4,3592.3,6.09914787]
[1762834935511,0.001,3592.4,3592.3,5.43914787]
[1762834935713,0.001,3592.4,3592.3,6.09914787]
[1762834942593,0.001,3592.4,3592.3,6.59914787]
[1762834943219,0.001,3592.4,3592.3,5.43914787]
[1762834943531,0.001,3592.4,3592.3,6.09814787]
[1762834946029,0.001,3592.4,3592.3,4.94474787]
[1762834946232,0.001,3592.4,3592.3,3.44273187]
[1762834946563,0.001,3592.4,3592.3,3.93713187]
[1762834946738,0.001,3592.4,3592.3,6.06824787]
[1762834947028,0.001,3592.4,3592.3,4.34263587]
[1762834947399,0.8661,3592.4,3592.3,2.78373187]
[1762834947598,0.8661,3592.4,3592.3,3.44273187]
[1762834947824,0.195,3592.9,3592.4,2.78363886]
[1762834948429,0.195,3592.9,3592.3,3.44272631]
[1762834948616,0.2989214,3592.8,3592.4,3.44260661]
[1762834948935,0.001,3592.8,3592.5,0.659]
[1762834949436,0.001,3592.8,3592.6,2.78348119]
[1762834949636,0.001,3592.8,3592.5,0.659]
[1762834949836,0.2884,3592.7,3592.5,0.659]
[1762834950003,0.001,3592.8,3592.5,0.659]
[1762834950198,0.001,3592.8,3592.5,3.44256164]
[1762834950422,0.001,3592.8,3592.6,2.78343773]
[1762834950755,0.001,3592.8,3592.5,0.659]
[1762834951276,0.2884,3592.7,3592.5,0.659]
[1762834953443,0.001,3592.8,3592.6,2.78348609]
[1762834953643,0.001,3592.8,3592.5,3.44254258]
[1762834953849,0.001,3592.8,3592.6,2.78345551]
[1762834954131,0.001,3592.8,3592.5,3.4425696]
[1762834954571,0.001,3592.8,3592.5,0.659]
[1762834956067,0.2894,3592.8,3592.5,0.659]
[1762834956369,0.001,3592.8,3592.5,0.659]
[1762834956589,0.001,3592.8,3592.6,2.78344312]
[1762834956747,0.001,3592.8,3592.5,3.44256757]
[1762834957369,0.001,3592.8,3592.6,2.78349188]
[1762834957568,0.001,3592.8,3592.6,2.78343857]
[1762834958225,0.51904638,3592.8,3592.5,3.44254804]
[1762834958702,0.51904638,3592.8,3592.5,0.659]
[1762834959011,0.51904638,3592.8,3592.6,2.78349941]
[1762834959674,0.51904638,3592.8,3592.7,2.78342193]
[1762834960002,0.51904638,3592.8,3592.6,2.78343519]
[1762834960208,0.51904638,3592.8,3592.7,2.78342193]
[1762834962584,0.001,3592.8,3592.7,2.78342193]
[1762834962786,0.51904638,3592.8,3592.7,3.27782193]
[1762834962996,0.001,3592.8,3592.7,2.78342193]
[1762834963525,0.001,3592.8,3592.7,3.44242193]
[1762834963683,0.001,3592.8,3592.7,3.93682193]
[1762834964009,0.001,3592.8,3592.7,4.40272193]
[1762834966629,0.001,3592.8,3592.7,4.80822593]
[1762834967006,0.001,3592.8,3592.7,7.70153208]
[1762834967204,0.001,3592.8,3592.7,7.29602808]
[1762834967407,0.001,3592.8,3592.7,3.93682193]
[1762834967808,0.001,3592.8,3592.7,6.83012808]
[1762834968405,0.001,3592.8,3592.7,7.29602808]
[1762834969628,0.001,3592.8,3592.7,10.59483823]
[1762834970129,0.001,3592.8,3592.7,7.70153208]
[1762834972795,0.001,3592.8,3592.7,7.23563208]
[1762834973009,0.001,3592.8,3592.7,7.70153208]
[1762834973849,0.001,3592.8,3592.7,10.59483823]
[1762834974020,0.001,3592.8,3592.7,7.70153208]
[1762834975525,0.001,3592.8,3592.7,10.59483823]
[1762834978648,0.001,3592.8,3592.7,11.85455023]
[1762834979038,0.001,3592.8,3592.7,11.85355023]
[1762834981546,0.001,3593.2,3593.1,4.44832807]
[1762834981756,0.001,3593.2,3593.1,12.06774037]
[1762834982325,0.001,3593.2,3593.1,16.42488237]
[1762834982774,0.001,3593.6,3593.1,16.42488237]
[1762834982775,0.001,3593.6,3593.5,3.18830628]
[1762834982929,0.001,3594.4,3594.2,3.1877643]
[1762834983130,0.001,3594.4,3594.2,11.5865886]
[1762834983328,0.001,3594.4,3594.2,11.4088886]
[1762834983573,0.001,3594.4,3594.2,7.99878245]
[1762834983778,0.001,3594.4,3594.2,6.93527845]
[1762834983958,0.001,3594.4,3594.2,8.09137845]
[1762834984204,0.001,3594.4,3594.2,10.9846846]
[1762834984470,0.001,3594.4,3594.2,11.4649846]
[1762834984668,0.001,3594.4,3594.2,8.09137845]
[1762834984830,0.001,3594.4,3594.2,8.86203866]
[1762834985932,0.001,3594.4,3594.2,9.26754266]
[1762834986258,0.001,3594.4,3594.2,9.74784266]
[1762834986666,0.001,3594.4,3594.2,4.0419723]
[1762834986960,0.001,3594.4,3594.2,5.1980723]
[1762834987160,0.001,3594.4,3594.2,5.6035763]
[1762834987467,0.001,3594.4,3594.2,6.0838763]
[1762834987870,0.001,3594.4,3594.2,5.6783723]
[1762834989002,0.001,3594.4,3594.2,6.0838763]
[1762834992386,0.001,3594.4,3594.2,4.9455763]
[1762834992590,0.001,3594.4,3594.2,5.6035763]
[1762834992816,0.001,3594.4,3594.2,6.0838763]
[1762834993315,0.001,3594.4,3594.2,4.4474763]
[1762834993478,0.001,3594.4,3594.2,5.1054763]
[1762834993877,0.001,3594.4,3594.2,4.6999723]
[1762834994127,0.1817,3594.9,3594.2,4.6999723]
[1762834994128,0.11135872,3596.7,3596.0,0.4981]
[1762834994333,0.11135872,3596.7,3596.6,6.94247007]
[1762834994619,0.0988,3597.4,3597.2,2.77988501]
[1762834994816,0.0988,3597.4,3597.0,3.66396636]
[1762834994817,0.4625,3597.3,3597.0,3.66396636]
[1762834994985,0.4625,3597.3,3597.2,2.77993995]
[1762834995411,0.4625,3597.3,3597.2,3.43793995]
[1762834995814,0.0988,3597.4,3597.3,2.77986267]
[1762834996138,0.0988,3597.8,3597.7,2.7795536]
[1762834996439,0.1854,3597.8,3597.7,3.4375536]
[1762834998191,0.1527,3598.6,3598.5,2.77893566]
[1762834998393,0.1527,3598.6,3598.4,6.44296019]
[1762834998951,0.5454,3598.5,3598.4,6.44296019]
[1762834999429,0.1817,3599.0,3598.4,4.82006636]
[1762834999594,0.1817,3599.0,3598.9,3.66396636]
[1762835000000,0.7271,3599.0,3598.9,3.66396636]
[1762835000218,0.7271,3599.0,3598.8,0.658]
[1762835000526,0.4671,3598.9,3598.8,3.43670401]
[1762835000842,0.1817,3599.0,3598.9,2.7786268]
[1762835001049,0.4625,3599.4,3598.9,3.66396636]
[1762835001244,0.0866,3599.0,3598.9,7.10151646]
[1762835001445,0.0866,3599.0,3598.9,7.10159316]
[1762835002700,0.5454,3599.0,3598.9,0.659]
[1762835002932,0.0866,3599.0,3598.9,0.659]
[1762835003161,0.5454,3599.0,3598.9,0.659]
[1762835003769,0.5454,3599.0,3598.2,3.66396636]
[1762835003967,0.5454,3599.0,3598.3,3.4380754]
[1762835003968,0.1817,3598.9,3598.3,3.4380754]
[1762835004135,0.1817,3598.9,3598.4,0.659]
[1762835004331,0.1817,3598.9,3597.8,3.66396636]
[1762835004332,0.0866,3598.5,3597.8,3.66396636]
[1762835004674,0.0009,3598.4,3598.3,2.77909012]
[1762835004862,0.0009,3598.4,3598.3,3.43809012]
[1762835006540,0.4566,3598.4,3598.3,0.659]
[1762835006758,0.0009,3598.4,3598.3,3.43809012]
[1762835007652,0.4557,3598.7,3598.3,3.43809012]
[1762835007653,0.4557,3598.7,3598.5,2.77891254]
[1762835007970,0.0934,3598.4,3598.3,0.659]
[1762835008163,0.0934,3598.4,3598.3,3.43809012]
[1762835008560,0.0934,3598.4,3597.8,4.12596636]
[1762835008561,0.5454,3598.4,3597.1,0.1964]
[1762835008862,0.0045,3597.9,3597.2,0.658]
[1762835009063,0.0045,3597.9,3597.7,2.77949801]
[1762835009263,0.0045,3597.9,3597.8,0.658]
[1762835009449,0.1258,3597.9,3597.8,3.43747634]
[1762835009774,0.2192,3597.9,3597.8,3.43747634]
[1762835010505,0.0934,3597.9,3597.8,3.43747634]
[1762835010679,0.4557,3598.2,3598.1,2.7792446]
[1762835010880,0.1817,3598.9,3598.1,1.16739244]
[1762835011079,0.1817,3598.9,3598.3,2.77903389]
[1762835011282,0.498,3598.4,3597.8,3.66396636]
[1762835011467,0.0518,3598.8,3597.9,0.658]
[1762835011468,2.77884725,3598.7,3597.9,0.658]
[1762835011824,0.4557,3598.7,3598.0,2.77932184]
[1762835012011,0.4557,3598.6,3598.2,2.77913091]
[1762835012302,0.4557,3598.6,3598.3,0.658]
[1762835012509,0.4557,3598.6,3598.3,2.77907487]
[1762835012812,0.0937,3598.4,3598.3,0.658]
[1762835013107,0.0937,3598.4,3598.1,0.658]
[1762835013308,0.0009,3598.2,3598.1,0.658]
[1762835013693,0.4566,3598.2,3598.1,0.658]
[1762835014170,0.4566,3598.2,3597.7,2.77955177]
[1762835014382,0.0928,3597.9,3597.8,0.658]
[1762835014584,0.4557,3598.2,3597.8,0.658]
[1762835014783,0.2179,3597.9,3597.8,0.658]
[1762835014983,0.2179,3597.9,3597.8,3.43747634]
[1762835015641,0.2179,3597.9,3597.8,2.77947634]
[1762835015792,0.2179,3597.9,3597.8,3.43647634]
[1762835016483,0.2179,3597.9,3597.8,0.657]
[1762835016681,0.2179,3597.9,3597.8,3.43647634]
[1762835016892,0.2179,3597.9,3597.1,0.58243664]
[1762835016893,0.1258,3597.9,3597.1,0.58243664]
[1762835017229,0.1817,3598.9,3597.3,3.1853336]
[1762835017378,0.4557,3598.4,3598.0,2.77931892]
[1762835017782,0.0934,3598.1,3598.0,2.77931892]
[1762835018215,0.0934,3598.1,3597.9,0.658]
[1762835018416,0.4557,3598.4,3598.0,2.77932184]
[1762835018729,0.001,3599.0,3598.9,2.7786268]
[1762835018928,0.001,3599.0,3598.9,4.3802268]
[1762835019498,0.0944,3599.0,3598.9,2.7786268]
[1762835019699,0.5464,3599.0,3598.9,0.658]
[1762835019921,0.0944,3599.0,3598.9,3.4366268]
[1762835020101,0.5464,3599.0,3598.9,3.4366268]
[1762835020300,0.098,3599.0,3598.9,3.4366268]
[1762835020608,0.001,3599.0,3598.9,3.4366268]
[1762835021218,0.1015,3599.0,3598.2,4.72803475]
[1762835021528,0.445,3598.8,3598.3,0.659]
[1762835021687,0.445,3598.8,3598.7,2.77878122]
[1762835021884,0.445,3598.8,3598.7,3.43778122]
[1762835022085,0.1817,3598.9,3598.8,2.77870401]
[1762835022331,0.001,3599.0,3598.9,2.7786268]
[1762835023933,0.5464,3599.0,3597.9,0.867504]
[1762835024143,0.001,3599.0,3598.9,2.7786268]
[1762835024351,0.001,3599.0,3598.9,3.4366268]
[1762835024557,0.0944,3599.0,3598.9,0.658]
[1762835024834,0.0944,3599.0,3598.9,3.4366268]
[1762835024987,0.0944,3599.0,3598.9,0.658]
[1762835025188,0.0944,3599.0,3598.9,3.4366268]
[1762835025735,0.001,3599.0,3598.9,3.9182268]
[1762835026141,0.0944,3599.0,3598.9,3.4366268]
[1762835026439,0.5464,3599.0,3598.9,0.658]
[1762835026844,0.0944,3599.0,3598.9,0.658]
[1762835027140,0.0944,3599.0,3598.9,3.4366268]
[1762835028398,0.001,3599.0,3598.9,3.9182268]
[1762835030101,0.0944,3599.0,3598.9,3.4366268]
[1762835030532,0.001,3599.0,3598.9,3.4366268]
[1762835031392,0.001,3599.0,3598.3,1.259712]
[1762835031393,0.0944,3599.0,3598.3,1.259712]
[1762835031592,0.0045,3598.8,3598.4,2.92306305]
[1762835031792,0.0045,3598.8,3598.4,0.657]
[1762835032029,0.0045,3598.8,3598.7,2.77878122]
[1762835032230,0.0045,3598.8,3598.1,1.440612]
[1762835032432,0.0045,3598.8,3598.2,0.657]
[1762835032433,0.4557,3598.8,3598.2,0.657]
[1762835032635,0.4557,3598.8,3598.6,2.7788363]
[1762835032932,0.4557,3598.8,3598.6,3.4358363]
[1762835033094,0.0934,3598.7,3598.6,3.4358363]
[1762835033937,0.0934,3598.7,3598.6,0.657]
[1762835034291,0.0934,3598.7,3598.6,3.43585844]
[1762835034931,0.0934,3598.7,3597.1,0.1964]
[1762835035095,0.0045,3598.3,3597.8,0.657]
[1762835035295,0.0045,3598.3,3598.2,2.77916736]
[1762835035495,0.0045,3598.3,3598.2,0.657]
[1762835035708,0.0813,3598.3,3598.2,0.657]
[1762835035919,0.5446,3598.3,3598.2,0.657]
[1762835036297,0.0813,3598.3,3598.2,3.43616736]
[1762835036799,0.4633,3598.6,3598.4,2.77899593]
[1762835037006,0.50752662,3598.7,3598.2,0.657]
[1762835037206,0.68922662,3598.9,3598.3,2.77908738]
[1762835037435,0.4754,3598.3,3597.6,2.77956975]
[1762835037742,2.77895457,3598.5,3597.1,0.1964]
[1762835037898,0.50752662,3598.4,3597.2,3.43688012]
[1762835038097,0.5,3598.4,3597.2,0.657]
[1762835038293,0.4555,3598.3,3597.5,2.77964318]
[1762835038536,3.27929964,3598.1,3597.6,0.657]
[1762835038837,0.50752662,3598.0,3597.6,0.657]
[1762835038993,0.4555,3598.5,3597.6,0.657]
[1762835039195,0.50742565,3598.8,3598.2,2.7791099]
[1762835039413,0.6372,3598.9,3598.3,2.77905682]
[1762835039737,0.6372,3598.9,3598.3,2.77908225]
[1762835039941,0.1817,3598.9,3598.3,2.77908225]
[1762835040232,0.1817,3598.9,3598.5,2.77886436]
[1762835040532,0.1817,3598.9,3598.6,2.77885556]
[1762835040750,0.1817,3598.9,3598.6,2.77883393]
[1762835041054,0.1817,3598.9,3598.6,2.77885511]
[1762835041648,2.77926221,3598.1,3596.3,1.49625703]
[1762835041819,0.4519,3598.8,3597.2,0.657]
[1762835042019,0.5,3598.3,3597.2,0.657]
[1762835042224,0.5,3598.3,3596.2,3.46832275]
[1762835042225,0.0936,3597.3,3596.7,0.6569]
[1762835042457,0.0936,3597.3,3596.8,0.657]
[1762835042635,0.0936,3597.3,3597.2,2.77993995]
[1762835042961,0.1258,3597.5,3596.8,0.4644]
[1762835043162,0.4555,3597.4,3597.0,2.7800835]
[1762835043461,0.1258,3597.5,3596.9,0.657]
[1762835043963,0.1258,3597.5,3597.1,2.78001216]
[1762835044123,0.1258,3597.5,3596.9,3.43716068]
[1762835044500,0.0936,3597.0,3596.6,2.78035759]
[1762835044753,0.5813,3597.5,3597.0,2.7800768]
[1762835044957,0.0936,3597.1,3596.7,1.00072576]
[1762835045167,0.0936,3597.1,3597.0,2.78009452]
[1762835045539,0.0936,3597.1,3596.8,2.78024409]
[1762835045723,0.0936,3597.1,3596.8,2.78023121]
[1762835045923,0.1934,3596.9,3596.4,2.78055551]
[1762835046229,0.1934,3596.9,3596.1,0.1984]
[1762835046230,0.0998,3596.9,3596.5,3.43745951]
[1762835046434,0.0998,3596.9,3596.5,0.657]
[1762835046659,0.0998,3596.9,3596.5,3.43745218]
[1762835046961,0.1258,3597.5,3597.0,2.78002204]
[1762835047160,0.1258,3597.5,3597.2,2.77992223]
[1762835047361,0.1258,3597.5,3596.6,0.4644]
[1762835047655,0.4555,3597.4,3596.6,0.4644]
[1762835047822,0.4555,3597.4,3596.7,0.2381112]
[1762835048023,0.1258,3597.5,3597.1,2.77996305]
[1762835048338,0.1258,3597.5,3596.8,3.43722693]
[1762835048539,0.1258,3597.5,3597.1,2.77995893]
[1762835048740,0.1258,3597.5,3597.2,2.77988563]
[1762835048928,0.1258,3597.5,3596.8,0.657]
[1762835049254,2.77940408,3597.9,3597.2,2.77988355]
[1762835049561,3.2348443,3598.0,3597.3,2.77986261]
[1762835049746,0.4555,3598.0,3597.2,0.68479939]
[1762835049947,0.4555,3598.0,3597.2,0.83821933]
[1762835050148,0.0998,3598.1,3597.6,2.77962816]
[1762835050463,0.0998,3598.1,3597.6,0.657]
[1762835050957,0.0936,3597.7,3597.6,0.657]
[1762835051726,0.5455,3597.7,3596.6,0.4644]
[1762835051927,0.4519,3597.7,3597.1,2.78001621]
[1762835052133,3.23150163,3597.7,3597.2,0.657]
[1762835052345,0.4519,3597.7,3597.2,0.657]
[1762835052638,0.0971,3597.3,3597.2,0.657]
[1762835054169,0.0971,3597.3,3597.2,3.43693995]
[1762835054375,0.0971,3597.3,3597.2,0.657]
[1762835054678,0.4483,3597.6,3597.2,0.657]
[1762835054995,0.4555,3597.9,3597.3,2.77986267]
[1762835055289,0.0936,3597.4,3596.0,0.4644]
[1762835055434,0.5,3597.2,3596.2,0.517]
[1762835055637,2.78001723,3597.1,3596.0,1.259712]
[1762835055949,0.0936,3596.2,3596.1,0.002]
[1762835056271,3.28019329,3596.9,3596.1,2.78277956]
[1762835056571,2.78024911,3596.8,3596.1,0.002]
[1762835056736,2.78032752,3596.7,3596.1,0.002]
[1762835057156,3.23576013,3596.8,3596.1,0.002]
[1762835057368,0.76794059,3596.7,3596.1,0.002]
[1762835057575,0.0936,3596.2,3596.1,0.002]
[1762835058430,3.23230923,3596.6,3596.1,0.002]
[1762835058431,0.4519,3596.6,3596.1,2.7827903]
[1762835059069,0.4519,3596.6,3596.1,0.002]
[1762835059244,0.1258,3596.9,3596.1,0.002]
[1762835059448,3.16437231,3596.8,3596.1,0.002]
[1762835059679,2.78034442,3596.7,3596.1,0.002]
[1762835060055,3.61986718,3596.8,3596.1,2.78278132]
[1762835060256,0.83959776,3596.8,3596.2,2.78070107]
[1762835060773,4.97581453,3597.0,3596.2,2.78070107]
[1762835060774,1.917712,3597.0,3596.2,2.78071297]
[1762835060939,0.658,3597.0,3596.3,1.1214]
[1762835061346,0.658,3597.0,3596.5,2.78047077]
[1762835062183,0.658,3597.0,3596.3,1.1214]
[1762835062482,0.658,3597.0,3596.5,2.78047431]
[1762835062961,3.43810637,3597.0,3596.4,2.78054509]
[1762835063339,0.658,3597.0,3596.4,2.78054509]
[1762835064175,2.78022661,3596.9,3596.3,0.657]
[1762835064489,0.4555,3596.9,3596.3,0.657]
[1762835064780,1.917712,3597.0,3596.4,2.78055628]
[1762835064943,0.658,3597.0,3596.4,2.78049215]
[1762835065541,0.658,3597.0,3596.3,3.9020265]
[1762835065738,1.1501,3597.0,3596.3,0.657]
[1762835065940,1.1501,3597.0,3596.1,0.002]
[1762835065941,0.4514,3596.4,3596.1,0.002]
[1762835066185,0.4479,3596.2,3596.1,0.002]
[1762835066688,0.1011,3596.5,3596.1,0.002]
[1762835066843,2.78034682,3596.7,3596.1,0.002]
[1762835067061,3.27237012,3596.8,3596.1,2.78278881]
[1762835067685,2.78036302,3596.7,3596.1,0.002]
[1762835068056,0.9115612,3597.0,3596.1,0.002]
[1762835068258,0.4921,3596.7,3596.1,0.002]
[1762835068655,2.78040899,3596.6,3596.1,0.002]
[1762835068861,0.0573,3596.2,3596.1,0.002]
[1762835069794,3.32581297,3596.2,3596.1,0.002]
[1762835070697,0.5451,3596.2,3596.1,0.002]
[1762835071199,3.32581297,3596.2,3596.1,0.002]
[1762835071396,1.15573838,3596.2,3596.1,0.002]
[1762835071566,0.5451,3596.2,3596.1,0.002]
[1762835071769,0.0573,3596.2,3596.1,0.002]
[1762835072598,2.83801297,3596.2,3596.1,0.002]
[1762835073098,3.32581297,3596.2,3596.1,0.002]
[1762835073401,6.24994875,3596.2,3596.1,0.002]
[1762835073568,7.15300035,3596.2,3596.1,0.002]
[1762835080301,7.15266218,3596.2,3596.1,0.002]
[1762835081471,1.76679761,3596.2,3596.1,0.4733]
[1762835081775,1.259712,3596.3,3596.1,0.4733]
[1762835081973,0.657,3596.4,3596.1,0.4733]
[1762835082405,0.657,3596.4,3596.1,0.002]
[1762835082406,2.83801297,3596.2,3596.1,0.002]
[1762835082569,3.84536422,3596.2,3596.1,0.002]
[1762835082981,3.33801297,3596.2,3596.1,0.002]
[1762835083368,0.56492777,3596.2,3596.1,0.002]
[1762835083601,2.78064965,3596.3,3596.1,0.4733]
[1762835083602,1.259712,3596.3,3596.1,0.4733]
[1762835083786,4.04035038,3596.3,3596.2,0.4713]
[1762835083981,4.5479802,3596.3,3596.2,0.4713]
[1762835084317,4.5479802,3596.3,3596.1,0.002]
[1762835084604,0.50790971,3596.2,3596.1,0.002]
[1762835084802,4.04035038,3596.3,3596.1,0.002]
[1762835084976,1.259712,3596.3,3596.2,0.4713]
[1762835085303,0.50794718,3596.3,3596.2,0.9294]
[1762835085607,4.04011848,3596.6,3596.2,0.9294]
[1762835085772,1.259712,3596.6,3596.5,0.4713]
[1762835085979,1.76795771,3596.6,3596.5,0.4713]
[1762835086813,2.7806097,3596.4,3596.1,0.002]
[1762835086976,1.357312,3596.6,3596.1,0.002]
[1762835087177,0.50827281,3596.5,3596.1,0.644]
[1762835087379,0.50827281,3596.6,3596.1,0.1859]
[1762835087574,2.78048845,3596.5,3596.1,0.1859]
[1762835087808,0.50827281,3596.4,3596.1,0.1859]
[1762835088124,2.78056082,3596.4,3596.1,0.002]
[1762835088277,0.52055456,3596.4,3596.1,0.002]
[1762835088477,3.2889631,3596.5,3596.1,0.002]
[1762835088710,0.50841934,3596.4,3596.1,0.002]
[1762835089181,3.28899389,3596.4,3596.1,0.002]
[1762835089402,2.78057455,3596.4,3596.1,0.002]
[1762835089985,2.83801297,3596.2,3596.1,0.002]
[1762835090284,4.52485766,3596.2,3596.1,0.002]
[1762835090614,5.01265766,3596.2,3596.1,0.002]
[1762835093214,4.52485766,3596.2,3596.1,0.002]
[1762835093580,6.27236966,3596.2,3596.1,0.002]
[1762835094377,5.78456966,3596.2,3596.1,0.002]
[1762835094613,6.27236966,3596.2,3596.1,0.002]
[1762835094819,9.9354423,3596.2,3596.1,0.002]
[1762835097319,6.27236966,3596.2,3596.1,0.002]
[1762835101229,10.3409463,3596.2,3596.1,0.002]
[1762835101598,10.45233045,3596.2,3596.1,0.002]
[1762835102096,5.78456966,3596.2,3596.1,0.002]
[1762835102432,6.44156966,3596.2,3596.1,0.002]
[1762835102630,6.38426966,3596.2,3596.1,0.002]
[1762835102818,5.20586611,3596.2,3596.1,0.9356]
[1762835103023,0.50844114,3596.2,3596.1,1.1263]
[1762835103196,0.658,3596.4,3596.1,1.1263]
[1762835103393,0.658,3596.4,3596.3,0.4606]
[1762835103594,1.16644114,3596.4,3596.3,0.4606]
[1762835103909,3.94699947,3596.4,3596.3,0.9336]
[1762835104110,3.94699947,3596.4,3596.3,0.4606]
[1762835104301,2.78071297,3596.2,3596.1,0.002]
[1762835104497,3.28915411,3596.2,3596.1,0.002]
[1762835104704,2.78069255,3596.3,3596.1,0.9356]
[1762835104905,2.78069255,3596.3,3596.2,0.4606]
[1762835105106,0.50864259,3596.3,3596.2,0.4606]
[1762835105319,3.28927824,3596.3,3596.2,0.4606]
[1762835105547,0.50864259,3596.3,3596.2,0.9336]
[1762835105834,1.16656356,3596.4,3596.2,0.9336]
[1762835106027,3.94713683,3596.4,3596.3,0.4606]
[1762835107334,1.16656356,3596.4,3596.3,0.4606]
[1762835107537,3.94712189,3596.4,3596.3,0.4606]
[1762835109541,3.94712189,3596.4,3596.3,0.9336]
[1762835109840,3.94712189,3596.4,3596.3,0.4606]
[1762835110039,3.94712189,3596.4,3596.3,0.9336]
[1762835110040,1.16656356,3596.4,3596.3,0.9336]
[1762835110240,1.16656356,3596.4,3596.1,0.1927]
[1762835110549,2.78155833,3596.4,3596.1,0.1927]
[1762835110846,2.78064013,3596.3,3596.1,0.1927]
[1762835111155,2.78064013,3596.3,3596.1,0.002]
[1762835112042,2.78157919,3596.4,3596.2,0.4606]
[1762835112435,2.85163565,3596.3,3596.1,0.002]
[1762835112633,8.71662859,3596.2,3596.1,0.002]
[1762835112855,9.19482859,3596.2,3596.1,0.002]
[1762835113458,9.60033259,3596.2,3596.1,0.002]
[1762835114433,4.2328343,3595.8,3595.7,1e-08]
[1762835114637,10.33198362,3595.8,3595.7,1e-08]
[1762835114861,10.44504192,3595.8,3595.7,1e-08]
[1762835117696,10.77683074,3595.8,3595.7,1e-08]
[1762835117905,13.70383074,3595.8,3595.7,1e-08]
[1762835118112,15.79787808,3595.8,3595.7,1e-08]
[1762835119397,3.6868357,3595.4,3594.0,0.002]
[1762835119706,9.78045132,3595.4,3594.0,0.002]
[1762835119914,10.25865132,3595.4,3594.0,0.002]
[1762835120118,11.87726426,3595.4,3594.0,0.002]
[1762835120684,3.28233772,3594.1,3594.0,0.002]
[1762835120889,5.7731807,3594.1,3594.0,0.002]
[1762835121196,5.7731807,3594.1,3594.0,0.4626]
[1762835121197,5.7074807,3594.1,3594.0,0.4626]
[1762835122292,5.19904972,3594.1,3594.0,0.4626]
[1762835122499,5.70544927,3594.1,3594.0,0.4626]
[1762835123072,5.70544927,3594.1,3594.0,0.002]
[1762835123276,6.19589897,3594.1,3594.0,0.9356]
[1762835123476,4.69904972,3594.1,3594.0,0.4626]
[1762835125309,5.19904972,3594.1,3594.0,0.002]
[1762835127108,5.19904972,3594.1,3594.0,0.4688]
[1762835127337,5.29394972,3594.1,3594.0,0.002]
[1762835127532,6.73556337,3594.1,3594.0,0.002]
[1762835127740,17.18923601,3594.1,3594.0,0.002]
[1762835127939,18.1000645,3594.1,3594.0,0.002]
[1762835128129,18.7595645,3594.1,3594.0,0.002]
[1762835128328,19.1247062,3594.1,3594.0,0.002]
[1762835129817,15.3465645,3594.1,3594.0,0.002]
[1762835130199,15.7117062,3594.1,3594.0,0.002]
[1762835130404,3.28295717,3593.3,3593.2,0.002]
[1762835130741,6.30665519,3593.3,3593.2,0.002]
[1762835130947,7.12239689,3593.3,3593.2,0.002]
[1762835131119,7.22605519,3593.3,3593.2,0.002]
[1762835132644,7.73013379,3593.3,3593.2,0.002]
[1762835136008,10.94260643,3593.3,3593.2,0.002]
[1762835136609,7.27953379,3593.3,3593.2,0.002]